bitfinex/quotes_SOLUSD_20250318
["timestamp","ask_amount","ask_price","bid_price","bid_amount"]
[1742327391978,13.74041732,124.15,124.11,68.4875]
[1742327392184,0.063,124.16,124.11,68.4875]
[1742327392395,13.80341732,124.16,124.11,82.22791732]
[1742327393184,13.74041732,124.15,124.11,68.4875]
[1742327393381,13.80341732,124.15,124.11,68.4875]
[1742327393610,0.063,124.15,124.11,82.22791732]
[1742327394293,0.063,124.16,124.15,20.0]
[1742327394695,0.0001,124.16,124.15,20.0]
[1742327395590,0.0001,124.16,124.14,34.94837476]
[1742327396100,0.0001,124.16,124.15,52.39006618]
[1742327396400,0.0001,124.16,124.15,60.44476618]
[1742327398005,0.0001,124.16,124.15,28.0547]
[1742327400618,0.0001,124.16,124.15,68.72501246]
[1742327400823,0.0001,124.16,124.15,68.15636618]
[1742327401115,0.0001,124.16,124.15,8.0547]
[1742327401821,0.0001,124.16,124.15,28.0547]
[1742327402411,13.74051732,124.16,124.15,28.0547]
[1742327402610,13.74051732,124.16,124.12,8.0567]
[1742327402789,13.74041732,124.13,124.12,8.0567]
[1742327402991,0.0001,124.16,124.15,20.0]
[1742327404394,13.74051732,124.16,124.15,28.0547]
[1742327404888,0.0001,124.16,124.15,28.0547]
[1742327409218,13.74051732,124.16,124.15,28.0547]
[1742327409626,13.74051732,124.16,124.15,8.0547]
[1742327410000,13.74051732,124.16,124.15,28.0547]
[1742327410617,13.74051732,124.16,124.14,8.0851]
[1742327410925,13.74041732,124.15,124.14,8.0851]
[1742327412414,13.74041732,124.15,124.14,0.03]
[1742327413308,0.0001,124.16,124.14,0.03]
[1742327413629,0.0001,124.16,124.15,20.0]
[1742327414416,0.0001,124.16,124.15,28.0547]
[1742327414626,0.0001,124.16,124.15,43.00319288]
[1742327414928,0.0001,124.16,124.15,60.87125089]
[1742327415343,0.0001,124.16,124.15,60.44476618]
[1742327416396,0.0001,124.2,124.19,38.64964886]
[1742327416631,0.0001,124.2,124.19,61.64947083]
[1742327418522,0.0001,124.2,124.19,28.0521]
[1742327420034,0.0001,124.2,124.19,41.79251732]
[1742327420332,0.0001,124.2,124.19,28.0521]
[1742327424021,13.74051732,124.2,124.19,28.0521]
[1742327424627,13.74051732,124.2,124.18,8.0526]
[1742327424815,13.74041732,124.19,124.18,8.0526]
[1742327425087,13.74041732,124.19,124.16,8.0541]
[1742327425325,21.5272315,124.17,124.15,8.0544]
[1742327425500,21.5272315,124.16,124.15,8.0544]
[1742327425906,21.5272315,124.16,124.14,0.03]
[1742327426131,21.5272315,124.15,124.14,0.03]
[1742327430007,21.5272315,124.16,124.14,0.03]
[1742327430223,21.5272315,124.15,124.14,0.03]
[1742327431828,1.5713,124.17,124.14,0.03]
[1742327432017,21.5272315,124.15,124.14,0.03]
[1742327432628,21.5272315,124.16,124.14,0.03]
[1742327433328,23.0985315,124.17,124.14,0.03]
[1742327433632,28.8072315,124.17,124.14,0.03]
[1742327435032,21.5272315,124.16,124.14,0.03]
[1742327435408,7.28,124.17,124.14,0.03]
[1742327435409,21.5272315,124.15,124.14,0.03]
[1742327439244,21.95371621,124.15,124.14,0.03]
[1742327439612,21.5272315,124.15,124.14,0.03]
[1742327441537,21.5272315,124.15,124.14,0.03]
[1742327445334,13.78465203,124.15,124.14,0.03]
[1742327445725,14.21113674,124.15,124.14,0.03]
[1742327447032,13.78465203,124.15,124.14,0.03]
[1742327450148,0.063,124.16,124.14,0.03]
[1742327450325,13.84765203,124.16,124.15,20.0]
[1742327452160,0.063,124.16,124.15,28.0547]
[1742327452462,0.0001,124.2,124.15,41.83935203]
[1742327452629,0.0001,124.2,124.19,20.0]
[1742327453247,0.0001,124.2,124.18,21.50871527]
[1742327453539,0.0001,124.2,124.19,20.0]
[1742327453941,0.0001,124.2,124.18,42.71623574]
[1742327454122,0.0001,124.2,124.19,8.0521]
[1742327454645,0.0001,124.2,124.19,35.64771527]
[1742327455237,0.0001,124.2,124.19,54.29736413]
[1742327455427,0.0001,124.2,124.19,54.72384884]
[1742327456149,0.0001,124.24,124.23,49.55821527]
[1742327456949,0.0001,124.24,124.23,28.0495]
[1742327460525,21.50881527,124.24,124.23,28.0495]
[1742327461132,21.50881527,124.24,124.22,28.0499]
[1742327461851,0.0001,124.24,124.22,28.0499]
[1742327462747,0.0001,124.24,124.22,49.55861527]
[1742327463151,0.0001,124.24,124.22,28.0499]
[1742327465549,21.50871527,124.23,124.22,20.0]
[1742327465856,21.50871527,124.23,124.22,28.0502]
[1742327468458,21.50871527,124.23,124.22,20.0]
[1742327468638,21.50871527,124.23,124.2,0.03]
[1742327468639,29.55831527,124.23,124.2,0.03]
[1742327468834,21.50871527,124.21,124.2,0.03]
[1742327471555,8.47608471,124.23,124.2,0.03]
[1742327471742,9.0501,124.24,124.2,0.03]
[1742327471946,21.50871527,124.23,124.2,0.03]
[1742327472747,21.50871527,124.23,124.2,28.2103]
[1742327474960,0.0001,124.24,124.22,28.0502]
[1742327475258,21.50881527,124.24,124.22,28.0502]
[1742327476667,21.50871527,124.23,124.22,28.0502]
[1742327477158,21.50871527,124.23,124.2,28.0812]
[1742327477585,21.50871527,124.21,124.2,28.0812]
[1742327479271,21.50871527,124.21,124.2,0.03]
[1742327479651,21.50871527,124.21,124.2,8.0815]
[1742327483062,21.50871527,124.22,124.2,8.0815]
[1742327483247,21.50871527,124.23,124.2,28.0815]
[1742327483572,21.50871527,124.22,124.2,48.2103]
[1742327486861,21.50871527,124.23,124.2,48.2103]
[1742327487674,7.5401,124.24,124.2,48.2103]
[1742327487871,21.50871527,124.23,124.2,48.2103]
[1742327488657,7.5401,124.24,124.2,48.2103]
[1742327488851,21.50871527,124.23,124.2,48.2103]
[1742327489563,0.0001,124.24,124.2,48.2103]
[1742327489564,21.50881527,124.24,124.2,48.2103]
[1742327489763,0.0001,124.24,124.23,20.0]
[1742327490655,0.0001,124.24,124.23,28.0495]
[1742327495067,21.50881527,124.24,124.23,28.0495]
[1742327495970,21.50881527,124.24,124.23,20.0]
[1742327496177,21.50881527,124.24,124.22,8.0499]
[1742327496378,21.50871527,124.23,124.22,8.0499]
[1742327497376,21.50871527,124.23,124.22,20.0]
[1742327498693,21.50871527,124.23,124.2,20.1588]
[1742327498694,21.50871527,124.23,124.2,0.03]
[1742327498863,21.50871527,124.21,124.2,0.03]
[1742327499062,28.98871527,124.21,124.18,8.0524]
[1742327499263,21.50871527,124.19,124.18,8.0524]
[1742327499483,21.50871527,124.19,124.18,20.0]
[1742327499665,21.50871527,124.19,124.16,28.1888]
[1742327499865,21.50871527,124.19,124.18,20.0]
[1742327500866,21.50871527,124.2,124.18,20.0]
[1742327501192,7.48,124.21,124.2,20.0]
[1742327501489,7.48,124.21,124.2,28.0515]
[1742327503370,21.50871527,124.22,124.2,28.0515]
[1742327506094,21.50881527,124.24,124.2,48.1803]
[1742327506272,0.0001,124.24,124.2,69.68901527]
[1742327507305,0.0001,124.24,124.23,20.0]
[1742327508889,0.0001,124.24,124.22,21.50871527]
[1742327509067,0.0001,124.24,124.21,2.73814115]
[1742327509068,0.0001,124.24,124.23,48.20786413]
[1742327509389,0.0001,124.24,124.23,54.51126413]
[1742327514484,0.063,124.29,124.27,20.0]
[1742327514819,0.03,124.31,124.28,41.50871527]
[1742327515271,0.03,124.31,124.3,21.50871527]
[1742327515475,0.0001,124.31,124.3,21.50871527]
[1742327515675,0.0001,124.31,124.29,1.20644486]
[1742327515872,0.0001,124.31,124.3,21.50871527]
[1742327516172,0.0001,124.31,124.3,29.55371527]
[1742327517199,0.0001,124.31,124.3,48.20336413]
[1742327517696,0.0001,124.33,124.3,68.74244884]
[1742327517900,0.0001,124.33,124.32,41.50871527]
[1742327518102,0.0001,124.33,124.32,20.0]
[1742327518324,0.0001,124.33,124.32,41.50871527]
[1742327518481,0.0001,124.33,124.31,22.71485888]
[1742327519302,0.0001,124.33,124.32,29.97889998]
[1742327520296,0.0001,124.35,124.34,38.64964886]
[1742327520596,0.0001,124.35,124.33,22.71461071]
[1742327520913,0.0001,124.35,124.33,40.15836413]
[1742327521298,0.0001,124.35,124.33,20.0]
[1742327521493,0.0001,124.35,124.34,20.0]
[1742327522909,0.0001,124.35,124.34,39.85569188]
[1742327523117,0.0001,124.35,124.34,38.64964886]
[1742327523291,0.0001,124.35,124.34,46.69204886]
[1742327526516,0.0001,124.35,124.34,68.20076413]
[1742327529115,0.0001,124.35,124.34,46.69204886]
[1742327529931,0.0001,124.35,124.34,68.20076413]
[1742327530305,0.0001,124.35,124.34,46.69204886]
[1742327530506,0.0001,124.35,124.34,28.0424]
[1742327551829,0.0001,124.35,124.34,41.77455377]
[1742327552041,0.0001,124.35,124.34,28.0424]
[1742327553319,0.0001,124.35,124.34,41.77455377]
[1742327553629,0.0001,124.35,124.34,28.0424]
[1742327554038,0.0001,124.35,124.34,60.42420263]
[1742327558254,0.0001,124.37,124.35,18.64964886]
[1742327558542,0.03,124.39,124.38,20.0]
[1742327559744,0.03,124.39,124.38,28.0398]
[1742327560241,13.76215377,124.39,124.38,28.0398]
[1742327562042,13.76215377,124.39,124.37,8.0401]
[1742327562225,13.73215377,124.38,124.37,8.0401]
[1742327563848,0.03,124.39,124.38,20.0]
[1742327564049,13.76215377,124.39,124.38,20.0]
[1742327564247,0.03,124.39,124.38,20.0]
[1742327564448,13.76215377,124.39,124.38,20.0]
[1742327565947,0.03,124.39,124.38,28.0398]
[1742327568048,13.76215377,124.39,124.38,28.0398]
[1742327568222,0.03,124.39,124.38,28.0398]
[1742327570049,13.76215377,124.39,124.38,28.0398]
[1742327570449,0.03,124.39,124.38,28.0398]
[1742327575049,0.03,124.39,124.38,8.0398]
[1742327575754,0.03,124.39,124.37,26.69014886]
[1742327579254,0.03,124.39,124.38,19.99741263]
[1742327579255,0.0001,124.39,124.38,19.99741263]
[1742327580159,0.0001,124.39,124.38,28.03721263]
[1742327580458,0.0001,124.39,124.38,26.83161043]
[1742327582758,0.0001,124.39,124.38,26.68944886]
[1742327582953,0.0001,124.39,124.38,26.83161043]
[1742327583152,0.03,124.41,124.4,20.0]
[1742327583841,0.03,124.42,124.4,38.79181043]
[1742327584059,0.03,124.42,124.41,8.0379]
[1742327585073,0.0001,124.42,124.41,28.03502941]
[1742327588657,0.0001,124.42,124.41,26.82971043]
[1742327590183,226.56215377,124.46,124.44,20.0]
[1742327590357,0.03,124.46,124.45,8.0353]
[1742327591067,13.76215377,124.46,124.45,8.0353]
[1742327596563,13.76215377,124.46,124.44,28.0358]
[1742327596760,13.76215377,124.46,124.41,38.88601043]
[1742327596761,13.73215377,124.45,124.43,8.0363]
[1742327597074,13.73215377,124.45,124.41,20.0942]
[1742327597075,13.73215377,124.44,124.4,8.0385]
[1742327597274,7.54,124.45,124.4,8.0385]
[1742327597275,13.73215377,124.41,124.4,8.0385]
[1742327597460,13.73215377,124.42,124.4,28.1349]
[1742327598061,13.73215377,124.42,124.41,20.0]
[1742327600689,13.73215377,124.42,124.41,28.0379]
[1742327600890,13.73215377,124.42,124.41,20.0]
[1742327602262,13.73215377,124.42,124.38,20.1626]
[1742327602460,9.5791,124.43,124.39,8.0389]
[1742327602660,13.73215377,124.4,124.39,20.0]
[1742327606273,13.73215377,124.4,124.39,28.0392]
[1742327607168,13.73215377,124.41,124.39,48.1372]
[1742327607374,13.73215377,124.42,124.39,48.1372]
[1742327607980,220.22,124.45,124.39,48.1372]
[1742327607981,13.73215377,124.41,124.39,48.1372]
[1742327611762,13.73215377,124.4,124.39,48.1372]
[1742327612266,13.73215377,124.4,124.39,28.0392]
[1742327613691,13.73215377,124.41,124.39,48.1372]
[1742327614491,7.5,124.45,124.39,48.1372]
[1742327614682,13.73215377,124.41,124.39,48.1372]
[1742327615290,13.12605377,124.41,124.39,48.1372]
[1742327615581,12.52525377,124.41,124.39,48.1372]
[1742327618267,12.52525377,124.41,124.39,48.2002]
[1742327618892,13.76215377,124.42,124.4,18.79181043]
[1742327619074,13.76215377,124.42,124.39,48.2002]
[1742327619481,13.73215377,124.41,124.39,48.2002]
[1742327619877,13.73215377,124.4,124.39,48.2002]
[1742327620175,13.73215377,124.41,124.39,48.2002]
[1742327621291,13.73215377,124.4,124.39,48.2002]
[1742327623497,13.73215377,124.4,124.39,28.1022]
[1742327630403,13.73215377,124.4,124.39,20.063]
[1742327631086,13.73215377,124.4,124.39,8.1022]
[1742327633305,13.73215377,124.4,124.39,20.063]
[1742327635516,13.73215377,124.4,124.39,28.1022]
[1742327636311,13.73215377,124.4,124.39,27.1022]
[1742327643429,13.73215377,124.4,124.39,27.1652]
[1742327643929,0.03,124.41,124.39,27.1652]
[1742327644230,13.73215377,124.4,124.39,27.1652]
[1742327647414,7.35,124.41,124.39,19.126]
[1742327647713,13.76215377,124.41,124.39,8.1021]
[1742327647915,13.73215377,124.4,124.39,8.1021]
[1742327649221,0.03,124.41,124.39,8.1021]
[1742327649517,13.76215377,124.41,124.39,8.1021]
[1742327650251,13.73215377,124.4,124.39,8.1021]
[1742327652303,13.76215377,124.41,124.39,8.1021]
[1742327652711,0.03,124.41,124.39,8.1021]
[1742327652911,13.73215377,124.4,124.39,8.1021]
[1742327654821,13.76215377,124.4,124.39,8.1021]
[1742327660126,78.47683042,124.4,124.38,0.063]
[1742327660431,76.36725356,124.39,124.37,0.063]
[1742327660729,13.73215377,124.38,124.37,0.063]
[1742327662212,14.9417493,124.38,124.34,20.0]
[1742327662411,13.73215377,124.35,124.34,20.0]
[1742327663014,21.01215377,124.35,124.34,20.0]
[1742327664223,21.01215377,124.35,124.34,28.0424]
[1742327666434,21.01215377,124.35,124.34,28.1054]
[1742327667613,7.28,124.35,124.34,28.1054]
[1742327667820,21.01215377,124.35,124.34,28.1054]
[1742327670038,13.73215377,124.35,124.34,28.1054]
[1742327676230,7.26,124.38,124.34,28.1054]
[1742327676431,13.73215377,124.37,124.34,48.2115]
[1742327676619,13.73215377,124.36,124.34,48.2115]
[1742327677118,13.73215377,124.37,124.34,48.2115]
[1742327678139,13.73215377,124.35,124.34,48.2115]
[1742327678335,13.73215377,124.36,124.34,48.2115]
[1742327679340,13.76215377,124.37,124.34,48.2115]
[1742327679839,13.73215377,124.36,124.34,48.2115]
[1742327680273,13.73215377,124.35,124.34,28.1054]
[1742327680534,0.42648471,124.34,124.3,8.045]
[1742327680749,13.73215377,124.31,124.3,8.045]
[1742327681236,13.73215377,124.31,124.29,20.70058542]
[1742327681437,13.73215377,124.3,124.29,20.70058542]
[1742327681628,13.73215377,124.3,124.29,8.0454]
[1742327681831,13.73215377,124.3,124.28,20.1153]
[1742327682024,13.73215377,124.29,124.28,20.1153]
[1742327682239,13.73215377,124.29,124.27,8.1099]
[1742327682440,13.73215377,124.28,124.27,8.1099]
[1742327682941,13.73215377,124.29,124.27,8.1099]
[1742327683439,13.73215377,124.28,124.27,28.2273]
[1742327683627,13.73215377,124.31,124.3,20.0]
[1742327683832,13.73215377,124.32,124.3,48.1576]
[1742327685542,8.9027,124.35,124.3,48.1576]
[1742327685740,13.73215377,124.32,124.3,48.1576]
[1742327686049,13.73215377,124.31,124.3,48.1576]
[1742327686846,13.73215377,124.32,124.3,48.1576]
[1742327688549,8.9027,124.35,124.3,48.1576]
[1742327688722,13.73215377,124.32,124.3,48.1576]
[1742327689344,8.9027,124.35,124.3,48.1576]
[1742327689646,13.73215377,124.32,124.3,48.1576]
[1742327690349,8.9027,124.35,124.3,48.1576]
[1742327690350,13.73215377,124.33,124.3,48.1576]
[1742327690728,13.73215377,124.33,124.3,48.2206]
[1742327691035,13.73215377,124.32,124.3,48.2206]
[1742327692030,13.73215377,124.31,124.3,28.108]
[1742327696151,13.73215377,124.32,124.3,48.2206]
[1742327697130,0.0001,124.37,124.36,20.14216157]
[1742327697340,0.0001,124.37,124.36,32.5239642]
[1742327697739,0.0001,124.4,124.39,20.0]
[1742327697953,0.0001,124.4,124.39,41.77135377]
[1742327698245,0.0001,124.4,124.39,28.0392]
[1742327699654,0.03,124.41,124.39,28.0392]
[1742327700466,0.03,124.42,124.39,69.57585157]
[1742327700631,0.03,124.46,124.44,20.0]
[1742327700837,21.46865157,124.46,124.44,20.0]
[1742327701144,0.03,124.46,124.44,20.0]
[1742327701342,0.03,124.46,124.43,18.79181043]
[1742327701535,0.03,124.46,124.45,20.0]
[1742327701959,0.03,124.46,124.45,38.79181043]
[1742327702256,0.03,124.46,124.45,46.82711043]
[1742327702953,0.03,124.48,124.45,88.354062]
[1742327703258,0.03,124.48,124.47,40.230462]
[1742327703443,0.03,124.48,124.47,18.79181043]
[1742327704036,0.03,124.48,124.47,20.0]
[1742327704229,0.03,124.48,124.47,28.034]
[1742327706364,21.46865157,124.48,124.47,28.034]
[1742327706538,21.46865157,124.48,124.46,8.0344]
[1742327706732,21.43865157,124.47,124.46,8.0344]
[1742327707138,21.43865157,124.47,124.46,20.0]
[1742327708249,8.7986,124.5,124.47,20.0]
[1742327709552,7.28,124.5,124.46,28.0345]
[1742327709751,21.43865157,124.49,124.48,20.0]
[1742327710317,21.43865157,124.49,124.48,28.0334]
[1742327710641,21.43865157,124.49,124.47,20.0]
[1742327710946,21.43865157,124.48,124.47,20.0]
[1742327711352,21.43865157,124.48,124.43,8.0366]
[1742327711538,15.3122,124.5,124.43,8.0366]
[1742327711539,21.43865157,124.44,124.43,8.0366]
[1742327712343,21.43865157,124.44,124.43,20.0]
[1742327712543,21.43865157,124.47,124.45,20.0]
[1742327713353,7.26,124.49,124.45,20.0]
[1742327713553,21.43865157,124.5,124.48,20.0]
[1742327714163,21.43865157,124.5,124.45,22.64358637]
[1742327714164,21.43865157,124.51,124.49,20.0]
[1742327714367,21.43865157,124.5,124.49,28.0327]
[1742327715869,21.43865157,124.5,124.49,20.0]
[1742327717047,21.46865157,124.5,124.49,20.0]
[1742327718350,21.46865157,124.5,124.49,28.0327]
[1742327718754,21.46865157,124.5,124.49,27.99081768]
[1742327720058,21.46865157,124.5,124.49,19.95811768]
[1742327720463,21.46865157,124.5,124.47,8.0338]
[1742327720666,21.43865157,124.48,124.45,0.063]
[1742327720847,15.3022,124.5,124.48,20.0]
[1742327722177,7.27,124.5,124.47,20.0]
[1742327722351,21.43865157,124.48,124.47,20.0]
[1742327724780,21.43865157,124.48,124.47,28.034]
[1742327726674,21.43865157,124.48,124.47,20.0]
[1742327727060,21.43865157,124.48,124.45,0.063]
[1742327727278,21.43865157,124.46,124.45,20.063]
[1742327727976,21.43865157,124.46,124.45,0.063]
[1742327728167,42.87730314,124.46,124.45,0.063]
[1742327728567,0.14216157,124.44,124.39,12.65518542]
[1742327728771,21.43865157,124.4,124.39,20.69398542]
[1742327728963,21.43865157,124.4,124.39,8.0388]
[1742327730777,21.43865157,124.4,124.39,20.0]
[1742327731485,0.66498611,124.43,124.4,20.0]
[1742327731672,21.43865157,124.41,124.4,20.0]
[1742327732865,21.43865157,124.41,124.38,8.0393]
[1742327733084,21.43865157,124.39,124.38,8.0393]
[1742327733977,21.43865157,124.39,124.38,20.0]
[1742327736090,21.43865157,124.39,124.38,28.0398]
[1742327740195,21.43865157,124.39,124.38,28.1028]
[1742327741790,21.43865157,124.39,124.35,0.063]
[1742327741791,0.28432314,124.38,124.35,0.063]
[1742327741978,21.43865157,124.33,124.32,0.063]
[1742327742287,28.61865157,124.33,124.32,0.063]
[1742327743997,50.05730314,124.33,124.32,0.063]
[1742327744190,50.05730314,124.33,124.3,0.063]
[1742327744495,21.43865157,124.31,124.3,20.063]
[1742327746304,21.43865157,124.31,124.3,28.108]
[1742327753810,0.03,124.32,124.3,28.108]
[1742327753979,21.46865157,124.32,124.3,28.108]
[1742327754494,21.43865157,124.32,124.3,48.2206]
[1742327754692,5.157e-05,124.32,124.3,48.2206]
[1742327754897,21.43865157,124.33,124.3,88.4458]
[1742327755700,7.14,124.35,124.3,88.4458]
[1742327755884,212.86,124.36,124.31,0.14216157]
[1742327756086,5.157e-05,124.34,124.33,20.0]
[1742327757901,5.157e-05,124.34,124.33,28.0431]
[1742327758898,214.4725,124.42,124.33,68.2586]
[1742327759100,214.4725,124.42,124.34,18.79181043]
[1742327759293,21.43865157,124.39,124.37,20.0]
[1742327760099,21.43865157,124.39,124.38,8.0398]
[1742327760328,21.43865157,124.41,124.4,20.0]
[1742327760884,21.43865157,124.42,124.41,20.0]
[1742327761795,21.43865157,124.42,124.38,28.1394]
[1742327761997,21.43865157,124.41,124.4,20.0]
[1742327762182,21.43865157,124.41,124.4,28.0385]
[1742327762583,0.03,124.43,124.4,89.85543836]
[1742327762805,0.0001,124.43,124.42,40.51478514]
[1742327763103,0.0001,124.43,124.42,48.93986491]
[1742327764105,0.03,124.5,124.45,20.0]
[1742327764287,0.03,124.5,124.47,8.034]
[1742327764288,21.43865157,124.49,124.47,8.034]
[1742327764799,21.43865157,124.48,124.47,8.034]
[1742327765986,21.43865157,124.48,124.47,20.0]
[1742327767114,0.03,124.5,124.48,20.0]
[1742327767290,21.43865157,124.49,124.48,20.0]
[1742327769411,21.43865157,124.49,124.48,28.0334]
[1742327770103,21.43865157,124.49,124.43,21.29626165]
[1742327770407,21.43865157,124.46,124.45,20.0]
[1742327770987,21.43865157,124.47,124.46,20.0]
[1742327771397,7.63648471,124.5,124.46,20.0]
[1742327771614,21.43865157,124.47,124.46,20.0]
[1742327772230,7.21,124.5,124.46,20.0]
[1742327772394,21.43865157,124.47,124.46,28.0347]
[1742327776113,0.03,124.5,124.46,74.17321043]
[1742327776311,21.43865157,124.47,124.46,48.1214]
[1742327776616,21.43865157,124.47,124.46,28.0347]
[1742327777724,21.43865157,124.48,124.46,48.1214]
[1742327779611,21.46865157,124.5,124.46,48.1214]
[1742327779810,21.46865157,124.5,124.46,88.2949]
[1742327780829,21.46865157,124.5,124.49,20.0]
[1742327781010,0.03,124.5,124.49,20.0]
[1742327783438,0.03,124.5,124.49,28.0327]
[1742327783933,0.03,124.51,124.49,46.82451043]
[1742327789111,0.03,124.51,124.49,46.68234886]
[1742327791428,0.03,124.51,124.49,68.12100043]
[1742327791729,0.03,124.51,124.5,18.79181043]
[1742327792722,0.03,124.51,124.5,26.82391043]
[1742327793343,0.03,124.51,124.5,8.17426157]
[1742327793932,0.03,124.51,124.5,8.0321]
[1742327794116,0.03,124.51,124.5,8.17426157]
[1742327796248,0.03,124.51,124.5,29.61291314]
[1742327796731,0.03,124.51,124.5,8.17426157]
[1742327798234,0.03,124.51,124.5,8.0321]
[1742327798632,21.46865157,124.51,124.49,28.0324]
[1742327798831,21.46865157,124.51,124.49,8.0324]
[1742327799936,21.46865157,124.51,124.5,0.063]
[1742327800823,21.46865157,124.51,124.5,20.063]
[1742327802036,0.03,124.51,124.5,20.063]
[1742327802237,21.46865157,124.51,124.5,20.063]
[1742327802952,21.46865157,124.51,124.5,28.0951]
[1742327803630,0.03,124.51,124.5,28.0951]
[1742327803825,21.46865157,124.51,124.5,28.0951]
[1742327807240,13.73384412,124.51,124.5,28.0951]
[1742327809148,0.03,124.51,124.5,28.0951]
[1742327809337,13.73384412,124.51,124.5,28.0951]
[1742327811430,0.03,124.51,124.5,28.0951]
[1742327820654,13.73384412,124.51,124.5,28.0951]
[1742327821855,0.03,124.51,124.5,28.0951]
[1742327822056,13.73384412,124.51,124.5,28.0951]
[1742327823847,0.03,124.51,124.5,28.0951]
[1742327824048,13.73384412,124.51,124.5,28.0951]
[1742327827156,0.03,124.51,124.5,28.0951]
[1742327829456,0.03,124.51,124.5,40.75028542]
[1742327832567,0.03,124.52,124.5,40.75028542]
[1742327839570,0.03,124.52,124.5,54.45412954]
[1742327840477,0.0001,124.52,124.51,13.84600569]
[1742327840775,0.0001,124.53,124.51,13.84600569]
[1742327840964,0.0001,124.53,124.52,33.70384412]
[1742327841474,0.0001,124.53,124.52,46.32276046]
[1742327842255,0.0001,124.53,124.52,54.35356046]
[1742327842559,0.0001,124.54,124.52,41.73464412]
[1742327842758,0.0001,124.54,124.53,13.70384412]
[1742327843584,0.0001,124.56,124.55,20.0]
[1742327843763,0.0001,124.56,124.54,13.70384412]
[1742327844081,0.0001,124.56,124.55,20.14216157]
[1742327844275,0.0001,124.56,124.55,21.87490569]
[1742327844667,0.0001,124.56,124.55,40.80887769]
[1742327845174,0.0001,124.56,124.55,46.07503801]
[1742327845474,0.0001,124.56,124.55,46.50152272]
[1742327845672,0.0001,124.56,124.55,46.35936115]
[1742327846879,0.0001,124.56,124.55,53.374423]
[1742327847962,0.0001,124.56,124.55,40.80887769]
[1742327849576,0.0001,124.56,124.55,47.88887769]
[1742327849976,0.0001,124.56,124.55,29.23922883]
[1742327850173,7.6173,124.64,124.6,0.14216157]
[1742327850399,7.6173,124.64,124.59,33.70384412]
[1742327850563,15.26304412,124.64,124.6,21.72944412]
[1742327850760,13.73384412,124.64,124.6,41.79364412]
[1742327851382,0.03,124.64,124.6,41.79364412]
[1742327851578,13.73384412,124.64,124.6,41.79364412]
[1742327851778,13.73384412,124.64,124.6,28.0898]
[1742327851988,13.70384412,124.63,124.62,20.0]
[1742327852662,13.70384412,124.63,124.6,8.0256]
[1742327852967,13.70384412,124.61,124.59,8.026]
[1742327853170,13.70384412,124.6,124.59,8.026]
[1742327853577,13.70384412,124.6,124.59,28.026]
[1742327853773,13.70384412,124.6,124.59,20.0]
[1742327854173,8.1576,124.62,124.59,20.0]
[1742327854372,13.70384412,124.61,124.59,20.0]
[1742327854583,13.70384412,124.61,124.59,28.0259]
[1742327856081,15.29644412,124.62,124.59,28.0259]
[1742327856282,15.29644412,124.62,124.59,48.0917]
[1742327856485,0.03,124.64,124.63,8.0237]
[1742327858288,0.0001,124.64,124.63,8.0237]
[1742327858787,0.0001,124.64,124.63,26.81551043]
[1742327860087,0.0001,124.65,124.63,40.51935455]
[1742327860441,0.0001,124.65,124.63,8.0237]
[1742327860442,13.70394412,124.65,124.63,8.0237]
[1742327860584,13.70384412,124.64,124.63,20.0]
[1742327862476,13.70384412,124.64,124.63,28.0237]
[1742327862890,13.70394412,124.65,124.63,28.0237]
[1742327863097,13.70394412,124.65,124.64,20.0]
[1742327863802,13.70394412,124.65,124.64,28.0231]
[1742327865619,0.0001,124.65,124.64,28.0231]
[1742327866496,0.0001,124.65,124.64,8.0231]
[1742327867195,0.0001,124.65,124.64,28.0231]